bitfinex-derivatives/quotes_ETHF0:USTF0_20241102
["timestamp","ask_amount","ask_price","bid_price","bid_amount"]
[1730514917491,3.52528,2520.7,2520.6,1.01826521]
[1730514917690,6.63329043,2520.7,2520.6,1.01826521]
[1730514918091,6.63329043,2520.7,2520.6,0.70077521]
[1730514920491,6.63329043,2520.7,2520.6,1.01826521]
[1730514920800,6.63329043,2520.7,2520.6,1.01830801]
[1730514921296,6.63329043,2520.7,2520.6,0.70081801]
[1730514921890,6.63329043,2520.7,2520.6,1.01830801]
[1730514922490,6.31581043,2520.7,2520.6,1.01830801]
[1730514923785,6.63329043,2520.7,2520.6,1.01830801]
[1730514923995,6.31581043,2520.7,2520.6,1.01830801]
[1730514924490,6.63329043,2520.7,2520.6,1.01830801]
[1730514924693,6.63329043,2520.7,2520.6,1.01833117]
[1730514925397,3.10801043,2520.7,2520.6,1.01833117]
[1730514927293,1.46085738,2520.8,2520.6,1.01833117]
[1730514927493,1.46085738,2520.8,2520.6,0.31749]
[1730514928596,1.46085738,2520.8,2520.7,0.12408902]
[1730514929093,1.46085738,2520.8,2520.6,0.31749]
[1730514929294,1.46085738,2520.8,2520.7,0.12408961]
[1730514929505,1.46085738,2520.8,2520.7,0.44156961]
[1730514930397,4.58525099,2520.8,2520.7,0.44156961]
[1730514931198,3.12439361,2520.8,2520.7,0.44156961]
[1730514931399,3.12439361,2520.8,2520.7,6.12884086]
[1730514931592,3.12439361,2520.8,2520.7,7.89652337]
[1730514932399,3.12439361,2520.8,2520.7,7.89635284]
[1730514932593,3.12439361,2520.8,2520.7,8.02042536]
[1730514932805,3.12439361,2520.8,2520.7,4.05322536]
[1730514933305,3.12439361,2520.8,2520.7,8.02042536]
[1730514933496,3.12439361,2520.8,2520.7,4.05322536]
[1730514933800,3.12439361,2520.8,2520.7,8.02042536]
[1730514934697,3.12439361,2520.8,2520.7,4.05322536]
[1730514935303,3.12439361,2520.8,2520.7,7.09788815]
[1730514935501,4.107,2521.0,2520.9,0.31745]
[1730514935693,4.107,2521.0,2520.9,0.44152293]
[1730514936203,4.107,2521.0,2520.9,0.441523]
[1730514936405,4.107,2521.0,2520.9,0.31745]
[1730514936897,0.8992,2521.0,2520.9,0.31745]
[1730514937507,1.21664,2521.0,2520.9,0.31745]
[1730514937704,0.8992,2521.0,2520.9,0.31745]
[1730514938899,0.8992,2521.0,2520.8,0.31746]
[1730514939206,3.52525,2520.9,2520.8,0.825]
[1730514939402,0.31747,2520.8,2520.7,1.2665425]
[1730514939608,0.75077,2520.8,2520.7,1.96689119]
[1730514939905,0.75077,2520.8,2520.7,1.07315794]
[1730514940108,0.75077,2520.8,2520.7,0.9490725]
[1730514940403,0.75077,2520.8,2520.5,0.825]
[1730514940404,0.31749,2520.6,2520.5,0.825]
[1730514940599,0.31749,2520.6,2520.5,1.52546687]
[1730514941005,1.22319,2520.6,2520.5,1.52546687]
[1730514942101,0.9057,2520.6,2520.5,1.84296687]
[1730514942304,0.9057,2520.6,2520.5,1.84302527]
[1730514942510,1.22319,2520.6,2520.5,1.52552527]
[1730514943099,1.22319,2520.6,2520.5,1.84302527]
[1730514943311,1.22319,2520.6,2520.5,1.26659352]
[1730514943508,1.22319,2520.6,2520.5,1.84306105]
[1730514944013,1.22319,2520.6,2520.5,1.52556105]
[1730514946407,1.22319,2520.6,2520.5,0.70056105]
[1730514946712,0.9057,2520.6,2520.3,1.58412]
[1730514947013,0.9057,2520.6,2520.4,0.70068425]
[1730514947014,1.89398738,2520.5,2520.4,0.70068425]
[1730514948518,1.89398738,2520.5,2520.4,0.12409855]
[1730514949015,1.89398738,2520.5,2520.4,0.12410003]
[1730514949220,1.89398738,2520.5,2520.3,1.58412]
[1730514949815,1.57647738,2520.5,2520.3,1.58412]
[1730514950007,0.31752,2520.4,2520.3,1.58412]
[1730514950207,0.31752,2520.4,2520.3,2.28466243]
[1730514950413,1.57647738,2520.5,2520.3,2.28466243]
[1730514950414,1.89398738,2520.5,2520.4,0.31752]
[1730514950814,0.31752,2520.4,2520.3,1.58413]
[1730514951110,0.31752,2520.4,2520.3,1.84303756]
[1730514951518,4.78427738,2520.5,2520.3,1.84303756]
[1730514951715,4.78427738,2520.5,2520.3,0.31753]
[1730514952027,0.31752,2520.4,2520.3,0.31753]
[1730514952226,0.31752,2520.4,2520.3,1.01792713]
[1730514952417,0.31752,2520.4,2520.3,0.70039713]
[1730514952729,0.31753,2520.3,2520.2,1.14253]
[1730514952933,0.31753,2520.3,2520.2,1.84293081]
[1730514953224,0.31752,2520.4,2520.2,1.84293081]
[1730514953422,0.31752,2520.4,2520.2,1.14253]
[1730514954228,0.31752,2520.4,2520.2,0.31754]
[1730514954229,0.31753,2520.3,2520.2,0.31754]
[1730514954421,0.31753,2520.3,2520.2,1.01789133]
[1730514955523,0.31753,2520.3,2520.2,0.44164929]
[1730514955924,0.31753,2520.3,2520.2,0.12410929]
[1730514957222,0.31753,2520.3,2520.2,0.44164929]
[1730514957626,4.66870738,2520.4,2520.2,0.44164794]
[1730514957830,4.66870738,2520.4,2520.2,0.31754]
[1730514958225,0.31753,2520.3,2520.1,1.59255]
[1730514958435,0.4323,2520.2,2520.1,1.14255]
[1730514958630,0.866,2520.2,2520.1,1.26666116]
[1730514959127,1.18354,2520.2,2520.1,0.44166116]
[1730514959329,1.18354,2520.2,2520.1,0.31755]
[1730514959523,0.866,2520.2,2520.1,0.31755]
[1730514961229,0.866,2520.2,2520.1,0.44165718]
[1730514961525,0.866,2520.2,2520.1,0.31755]
[1730514962333,1.18354,2520.2,2520.1,0.31755]
[1730514963231,0.866,2520.2,2520.0,2.42137738]
[1730514963433,0.866,2520.2,2520.1,0.31755]
[1730514964229,3.2078,2520.3,2520.2,0.31754]
[1730514964424,3.2078,2520.3,2520.2,4.40964032]
[1730514964639,0.4616,2520.6,2520.5,0.3175]
[1730514964640,3.2078,2520.6,2520.5,0.3175]
[1730514964836,3.2078,2520.6,2520.5,2.40996444]
[1730514965334,3.2078,2520.6,2520.5,2.9854791]
[1730514965535,0.4422,2520.9,2520.5,2.6679791]
[1730514965726,0.75966,2520.9,2520.7,0.31747]
[1730514966135,0.75966,2520.9,2520.8,0.4591]
[1730514966337,0.4422,2520.9,2520.8,0.4591]
[1730514966528,6.33219361,2521.1,2520.8,1.60247738]
[1730514966730,6.33219361,2521.1,2521.0,0.31744]
[1730514966731,3.2078,2521.1,2521.0,0.31744]
[1730514967533,4.72937099,2521.3,2521.1,0.31742]
[1730514967534,1.60497738,2521.3,2521.1,0.31742]
[1730514967727,1.92238738,2521.3,2521.1,0.31742]
[1730514968637,5.13018738,2521.3,2521.1,0.31742]
[1730514969532,0.31742,2521.2,2521.1,0.31742]
[1730514969731,1.46080738,2521.2,2521.0,1.14244]
[1730514970237,1.46080738,2521.2,2521.1,0.31743]
[1730514970430,1.46080738,2521.2,2521.0,1.14243]
[1730514970940,1.14337738,2521.2,2521.1,0.31743]
[1730514973038,1.46079738,2521.2,2521.0,1.14243]
[1730514973340,1.14337738,2521.2,2521.0,0.825]
[1730514973536,1.14337738,2521.2,2521.1,0.31743]
[1730514973537,1.46079738,2521.2,2521.1,0.31743]
[1730514974337,1.14337738,2521.2,2521.1,0.31743]
[1730514974638,1.14337738,2521.2,2521.0,0.825]
[1730514974832,1.46079738,2521.2,2521.0,1.14243]
[1730514975235,1.14337738,2521.2,2521.1,0.31743]
[1730514976243,1.14337738,2521.2,2520.8,0.4591]
[1730514976437,1.46079738,2521.2,2521.1,0.31743]
[1730514976638,1.14337738,2521.2,2520.9,0.826]
[1730514976839,1.46079738,2521.2,2521.0,0.31744]
[1730514981548,1.46079738,2521.2,2521.1,0.31743]
[1730514982240,1.46079738,2521.2,2521.0,0.31743]
[1730514982834,1.46079738,2521.2,2521.1,0.31743]
[1730514985246,4.66859738,2521.2,2521.1,0.31743]
[1730514985839,4.35117738,2521.2,2521.0,0.31743]
[1730514986046,4.66859738,2521.2,2521.1,0.31743]
[1730514986639,4.35117738,2521.2,2520.8,1.2851]
[1730514986850,0.31743,2521.1,2521.0,0.31744]
[1730514987252,4.66859738,2521.2,2521.1,0.31743]
[1730514988354,4.35117738,2521.2,2520.8,1.2851]
[1730514988748,3.2078,2521.2,2521.1,0.31743]
[1730514989353,3.52522,2521.2,2521.1,0.31743]
[1730514990046,0.31743,2521.1,2521.0,0.31744]
[1730514990252,3.2078,2521.2,2521.0,0.31744]
[1730514990446,3.52522,2521.2,2521.0,0.31744]
[1730514990646,0.31742,2521.2,2521.0,0.31744]
[1730514990957,3.52522,2521.2,2521.0,0.31744]
[1730514991449,3.52522,2521.2,2520.8,2.42847738]
[1730514991753,3.52522,2521.2,2521.1,0.31743]
[1730514992343,3.2078,2521.2,2521.0,0.31744]
[1730514992545,3.52522,2521.2,2521.1,0.31743]
[1730514992946,3.52522,2521.2,2520.8,2.42847738]
[1730514993152,3.52522,2521.2,2521.1,0.31743]
[1730514993455,3.52522,2521.2,2520.8,2.42847738]
[1730514993456,3.2078,2521.2,2520.8,2.42847738]
[1730514993852,3.52522,2521.2,2521.1,0.31743]
[1730514995448,3.2078,2521.2,2520.8,2.42847738]
[1730514995654,3.52522,2521.2,2521.1,0.31743]
[1730514996357,0.31742,2521.2,2521.1,0.31743]
[1730514996759,3.52522,2521.2,2521.1,0.31743]
[1730514997560,0.31743,2521.1,2521.0,0.31743]
[1730514998058,3.52522,2521.2,2521.1,0.31743]
[1730514998460,0.31743,2521.1,2521.0,0.31743]
[1730514998957,0.31742,2521.2,2521.0,0.31743]
[1730514999251,1.60497738,2521.3,2521.0,0.31743]
[1730514999455,3.52523,2521.2,2521.0,0.31743]
[1730514999854,0.31743,2521.1,2521.0,0.31743]
[1730515000750,3.52522,2521.2,2521.0,0.31743]
[1730515000952,0.31743,2521.1,2521.0,0.31743]
[1730515002164,0.31743,2521.1,2520.9,0.31744]
[1730515002362,0.446,2521.0,2520.9,0.31744]
[1730515009368,0.446,2521.0,2520.9,1.01739252]
[1730515010264,6.33219361,2521.2,2521.1,0.31743]
[1730515010265,3.2078,2521.2,2521.1,0.31743]
[1730515010460,6.33219361,2521.2,2521.1,0.31743]
[1730515011165,3.12439361,2521.2,2521.1,0.31743]
[1730515011475,6.33219361,2521.2,2521.1,0.31743]
[1730515011973,6.33219361,2521.2,2521.1,0.89374538]
[1730515012273,6.33219361,2521.2,2521.1,0.31743]
[1730515012470,3.2078,2521.2,2521.1,0.31743]
[1730515013569,3.2078,2521.2,2521.1,0.44149792]
[1730515014071,3.2078,2521.2,2521.1,0.31743]
[1730515014573,3.52522,2521.2,2521.1,0.31743]
[1730515015576,3.2078,2521.2,2521.1,0.31743]
[1730515016080,3.2078,2521.2,2521.1,0.44149759]
[1730515016480,3.96253588,2521.3,2521.2,0.31742]
[1730515016672,3.96253588,2521.3,2521.2,1.01812181]
[1730515016875,7.92893588,2521.3,2521.2,0.44148759]
[1730515017079,11.13673588,2521.3,2521.2,1.01810769]
[1730515017579,7.92893588,2521.3,2521.2,1.01810847]
[1730515017879,11.13673588,2521.3,2521.2,0.44148759]
[1730515018082,7.17033588,2521.3,2521.2,0.44148759]
[1730515018677,7.17033588,2521.3,2521.2,0.12406759]
[1730515018981,7.17033588,2521.3,2521.2,0.44148759]
[1730515019382,7.17033588,2521.3,2521.2,0.31742]
[1730515019569,7.17033588,2521.3,2521.2,0.44148916]
[1730515019773,0.31742,2521.2,2521.1,0.31742]
[1730515019978,0.31742,2521.2,2521.1,0.89401526]
[1730515020277,3.52522,2521.2,2521.1,1.01808426]
[1730515021474,7.17034588,2521.2,2521.1,1.01808426]
[1730515021871,7.17034588,2521.2,2521.1,1.01811062]
[1730515022681,7.17034588,2521.2,2521.1,0.70069062]
[1730515022887,7.17034588,2521.2,2521.1,1.01812062]
[1730515023274,7.17034588,2521.2,2521.1,0.70069062]
[1730515023880,7.17034588,2521.2,2521.1,0.124069]
[1730515024482,7.17034588,2521.2,2520.8,0.4347]
[1730515024483,7.1742,2521.2,2520.8,0.4347]
[1730515024689,1.90291738,2521.1,2521.0,0.31743]
[1730515024988,5.54940752,2521.1,2521.0,1.01814168]
[1730515025383,5.11071738,2521.1,2521.0,0.31743]
[1730515025578,5.11071738,2521.1,2521.0,1.01812426]
[1730515025778,8.75720752,2521.1,2521.0,1.01812426]
[1730515025983,5.54940752,2521.1,2521.0,1.01812426]
[1730515026585,8.75720752,2521.1,2521.0,0.70069426]
[1730515028384,5.11071738,2521.1,2521.0,0.70069426]
[1730515028786,5.11071738,2521.1,2521.0,1.01813426]
[1730515028986,5.11071738,2521.1,2521.0,0.31744]
[1730515029187,5.11071738,2521.1,2521.0,1.01780489]
[1730515029699,3.96734,2521.1,2521.0,1.01780489]
[1730515030889,6.3326482,2521.1,2521.0,1.01780489]
[1730515031398,3.2078,2521.1,2521.0,1.01780489]
[1730515032399,3.2078,2521.1,2521.0,0.31744]
[1730515032595,3.2078,2521.1,2521.0,1.01768181]
[1730515032895,3.2078,2521.1,2521.0,0.31744]
[1730515033102,3.2078,2521.1,2521.0,1.01768136]
[1730515033697,6.6500682,2521.2,2521.1,0.31743]
[1730515033897,6.6500682,2521.2,2521.1,1.01767136]
[1730515034097,6.3326482,2521.2,2521.1,1.01767136]
[1730515035200,6.3326482,2521.2,2521.1,0.70024136]
[1730515035606,6.3326482,2521.2,2521.1,1.57644136]
[1730515035797,6.3326482,2521.2,2521.1,2.01414136]
[1730515036900,3.1248482,2521.2,2521.1,2.01414136]
[1730515037099,6.3326482,2521.2,2521.1,2.01414136]
[1730515039202,6.3326482,2521.2,2521.1,2.33157136]
[1730515040309,3.2078,2521.2,2521.1,2.33157136]
[1730515041113,6.3326482,2521.2,2521.1,2.01414136]
[1730515041898,3.2078,2521.2,2521.1,2.01414136]
[1730515042711,3.4422582,2521.3,2521.1,2.01414136]
[1730515042906,3.4422582,2521.3,2521.2,0.12406923]
[1730515043110,6.6500582,2521.3,2521.2,0.12406923]
[1730515043503,6.6500582,2521.3,2521.2,0.12406523]
[1730515044211,3.52521,2521.3,2521.2,0.12406523]
[1730515044410,6.64928141,2521.3,2521.2,0.12406523]
[1730515044615,6.64930773,2521.3,2521.2,0.12406523]
[1730515045417,0.31742,2521.2,2521.1,0.4295]
[1730515045712,3.86340357,2521.2,2521.1,1.12954041]
[1730515047712,3.86340357,2521.2,2521.1,0.12406867]
[1730515048712,7.07120357,2521.2,2521.1,0.12406867]
[1730515050011,0.31745,2520.9,2520.8,0.821]
[1730515050216,3.44188045,2520.9,2520.8,0.94508254]
[1730515050519,0.31745,2520.9,2520.8,0.821]
[1730515050817,0.75325,2520.9,2520.8,0.821]
[1730515051121,3.55984135,2520.9,2520.6,0.821]
[1730515051310,0.31748,2520.7,2520.6,0.821]
[1730515051516,0.31748,2520.7,2520.6,1.83869096]
[1730515052318,0.31748,2520.7,2520.6,1.52120096]
[1730515054613,0.31748,2520.7,2520.6,1.3968372]
[1730515054819,0.31748,2520.7,2520.6,1.52092378]
[1730515055021,0.31748,2520.7,2520.6,0.6999053]
[1730515055221,3.52528,2520.7,2520.6,0.6999053]
[1730515055517,3.52528,2520.7,2520.4,1.14337738]
[1730515055518,3.2078,2520.7,2520.4,1.14337738]
[1730515055714,0.3175,2520.5,2520.4,1.96437738]
[1730515055916,0.3175,2520.5,2520.4,2.66434752]
[1730515056318,0.3175,2520.5,2520.4,2.54024846]
[1730515056524,0.3175,2520.5,2520.4,2.66434628]
[1730515057315,0.3175,2520.5,2520.4,2.0884752]
[1730515058318,0.3175,2520.5,2520.4,2.08847461]
[1730515058616,0.3175,2520.5,2520.4,1.96437738]
[1730515059413,0.3175,2520.5,2520.4,1.26747144]
[1730515059614,0.31753,2520.3,2520.2,0.4273]
[1730515060423,0.73843,2520.3,2520.2,0.4273]
[1730515061727,3.52532,2520.4,2520.2,0.74483]
[1730515061922,0.4451,2520.3,2520.2,1.88820738]
[1730515062114,0.76263,2520.3,2520.2,1.57067738]
[1730515062530,3.52533,2520.4,2520.2,1.57067738]
[1730515063827,3.52532,2520.4,2520.2,1.88821738]
[1730515064036,4.35117738,2520.4,2520.0,0.8467]
[1730515064217,0.31755,2520.1,2519.9,4.66875738]
[1730515064418,0.4451,2520.0,2519.9,4.66875738]
[1730515064619,0.76267,2520.0,2519.9,4.47528845]
[1730515064824,0.76267,2520.0,2519.9,4.66875738]
[1730515065023,0.76267,2520.0,2519.8,0.821]
[1730515065024,0.4451,2520.0,2519.8,0.821]
[1730515065229,0.31758,2519.9,2519.8,0.821]
[1730515065424,1.22088,2519.9,2519.8,0.821]
[1730515065623,1.22088,2519.9,2519.7,1.46097738]
[1730515065819,1.22088,2519.9,2519.8,0.31759]
[1730515066018,1.22088,2519.9,2519.7,0.3176]
[1730515066219,1.22089,2519.9,2519.7,0.3176]
[1730515066420,0.31759,2519.8,2519.7,0.3176]
[1730515066726,1.22089,2519.9,2519.7,0.3176]
[1730515066923,2.04667738,2519.9,2519.7,0.3176]
[1730515067125,2.36426738,2519.9,2519.7,0.3176]
[1730515067429,0.3176,2519.8,2519.6,0.31761]
[1730515067626,0.3176,2519.7,2519.6,1.13861]
[1730515067926,2.04667738,2519.9,2519.6,1.13861]
[1730515068131,0.31763,2519.5,2519.3,2.32591738]
[1730515068329,0.31763,2519.5,2519.3,3.14691738]
[1730515068729,1.19543,2519.5,2519.3,3.14691738]
[1730515069231,0.8778,2519.5,2519.4,0.31764]
[1730515069832,1.19543,2519.5,2519.3,2.38907738]
[1730515070125,1.19543,2519.5,2519.4,0.31764]
[1730515070325,0.8778,2519.5,2519.4,0.31764]
[1730515070728,1.19543,2519.5,2519.3,2.70672738]
[1730515071329,1.19543,2519.5,2519.4,0.31764]
[1730515071330,0.8778,2519.5,2519.4,0.31764]
[1730515072725,1.19543,2519.5,2519.3,2.38907738]
[1730515072923,0.8778,2519.5,2519.4,0.31764]
[1730515073729,0.446,2519.5,2519.4,0.31764]
[1730515073934,0.4283,2519.6,2519.5,0.31763]
[1730515074129,3.52541,2519.7,2519.5,0.73383]
[1730515076527,0.31759,2519.8,2519.7,0.3176]
[1730515076841,0.31759,2519.8,2519.6,0.31761]
[1730515077324,0.3176,2519.7,2519.6,0.31762]
[1730515079235,3.2078,2519.8,2519.5,1.55957738]
[1730515079439,1.14337738,2519.9,2519.5,0.73382]
[1730515079626,1.14337738,2519.9,2519.5,0.4162]
[1730515079627,0.31761,2519.7,2519.5,0.4162]
[1730515079934,0.31761,2519.7,2519.6,0.31762]
[1730515080937,0.31762,2519.6,2519.5,0.73382]
[1730515081133,0.31761,2519.7,2519.6,0.31762]
[1730515092244,0.31762,2519.6,2519.5,0.73382]
[1730515092442,0.31761,2519.7,2519.6,0.31761]
[1730515094347,1.14337738,2519.9,2519.6,0.4436]
[1730515094547,0.3176,2519.8,2519.7,0.3176]
[1730515095046,1.14337738,2519.9,2519.6,0.76121]
[1730515095047,0.3176,2519.7,2519.6,0.76121]
[1730515098950,0.3176,2519.7,2519.3,1.61513]
[1730515098951,1.14337738,2519.8,2519.3,0.821]
[1730515099155,2.03327738,2519.6,2519.2,1.6975]
[1730515099451,0.31765,2519.4,2519.3,0.31765]
[1730515099747,0.31765,2519.4,2519.2,1.6975]
[1730515099950,0.31765,2519.4,2519.3,0.31765]
[1730515100454,0.74674,2519.5,2519.4,0.31764]
[1730515100650,0.31765,2519.4,2519.2,1.6975]
[1730515100950,0.31765,2519.4,2519.2,2.01516]
[1730515101151,0.31765,2519.4,2519.2,1.6975]
[1730515101356,0.31765,2519.4,2519.2,1.19416]
[1730515101557,0.4384,2519.3,2519.2,2.01516]
[1730515102247,0.4384,2519.3,2519.2,2.13930652]
[1730515102748,0.75605,2519.3,2519.2,1.13866]
[1730515103149,0.4384,2519.3,2519.2,1.13866]
[1730515103351,0.4384,2519.3,2519.2,1.26280955]
[1730515104052,0.75605,2519.3,2519.2,0.821]
[1730515104257,0.75605,2519.3,2519.2,5.10827]
[1730515104551,0.75605,2519.3,2519.2,4.7906]
[1730515104852,0.75605,2519.3,2519.2,5.10827]
[1730515105245,0.75605,2519.3,2519.2,1.13867]
[1730515106651,0.4384,2519.3,2519.2,1.13867]
[1730515106958,0.4384,2519.3,2519.2,1.26282251]
[1730515107160,0.75605,2519.3,2519.2,1.26282251]
[1730515107548,0.4384,2519.3,2519.2,1.26282251]
[1730515107852,0.4291,2519.5,2519.2,1.26282251]
[1730515108154,0.4577,2519.3,2519.2,1.13867]
[1730515108363,0.4577,2519.3,2519.2,1.83906688]
[1730515108855,0.4577,2519.3,2519.2,1.13867]
[1730515109153,0.4577,2519.3,2519.2,1.71491296]
[1730515109456,0.4577,2519.3,2519.2,1.96336352]
[1730515109847,0.4577,2519.3,2519.2,1.14236352]
[1730515110049,0.77535,2519.3,2519.2,1.14236352]
[1730515110456,0.4577,2519.3,2519.2,1.59916352]
[1730515112162,0.77535,2519.3,2519.2,1.59916352]
[1730515112659,0.77535,2519.3,2519.2,0.58095368]
[1730515112854,0.77535,2519.3,2519.2,1.28170374]
[1730515113054,0.77535,2519.3,2519.2,1.59937374]
[1730515113753,0.77535,2519.3,2519.2,0.82490374]
[1730515115358,1.91872738,2519.3,2519.2,0.82490374]
[1730515116255,1.91872738,2519.3,2519.2,0.24830713]
[1730515116648,1.91872738,2519.3,2519.2,0.12415368]
[1730515117255,0.31767,2519.2,2519.1,0.821]
[1730515117455,0.74237,2519.2,2519.1,1.52168654]
[1730515118462,0.74237,2519.2,2519.1,1.83936654]
[1730515119053,0.74237,2519.2,2519.1,1.52168654]
[1730515119461,0.74237,2519.2,2519.1,1.83936654]
[1730515120555,0.74237,2519.2,2519.1,1.26284]
[1730515123162,0.74237,2519.2,2519.1,1.26284077]
[1730515123366,0.74237,2519.2,2519.1,1.13868]
[1730515123667,4.35117738,2519.4,2519.1,1.52143651]
[1730515123853,3.5789712,2519.6,2519.5,0.31763]
[1730515124053,8.70402858,2519.9,2519.8,0.31759]
[1730515124264,0.912,2519.9,2519.8,0.31759]
[1730515124564,1.22958,2519.9,2519.8,0.31759]
[1730515127158,1.22958,2519.9,2519.7,0.3176]
[1730515127360,1.22958,2519.9,2519.8,0.31759]
[1730515127361,0.912,2519.9,2519.8,0.31759]
[1730515127667,1.22958,2519.9,2519.8,0.31759]
[1730515127859,1.22958,2519.9,2519.7,0.3176]
[1730515128266,1.22958,2519.9,2519.8,0.4277]
[1730515128575,1.22958,2519.9,2519.8,0.74529]
[1730515129562,1.22958,2519.9,2519.8,0.4277]
[1730515130672,1.22958,2519.9,2519.8,0.74529]
[1730515131260,1.22958,2519.9,2519.8,0.4277]
[1730515135467,1.57397738,2520.0,2519.9,0.31758]
[1730515135866,1.57397738,2520.0,2519.9,0.77128]
[1730515136173,1.14337738,2520.0,2519.9,0.77128]
[1730515139976,3.97236,2520.1,2519.9,0.77128]
[1730515140166,3.97236,2520.1,2520.0,0.31757]
[1730515146284,0.31757,2520.0,2519.9,0.77127]
[1730515146471,0.31758,2519.9,2519.8,0.74528]
[1730515146675,0.31758,2519.9,2519.8,0.31758]
[1730515148177,0.31758,2519.9,2519.7,0.3176]
[1730515148378,0.3176,2519.7,2519.6,2.01041]
[1730515148585,0.3176,2519.7,2519.6,0.75851]
[1730515148786,0.3176,2519.7,2519.6,1.58351]
[1730515149282,1.6302,2519.8,2519.7,0.3176]
[1730515149785,1.6302,2519.8,2519.6,1.2659]
[1730515150083,1.6302,2519.8,2519.7,0.3176]
[1730515150986,0.3176,2519.7,2519.6,1.14261]
[1730515151184,1.3126,2519.8,2519.6,0.825]
[1730515151379,1.6302,2519.8,2519.7,0.3176]
[1730515151877,0.31762,2519.6,2519.4,0.4526]
[1730515152179,0.31761,2519.7,2519.4,0.4526]
[1730515152379,0.31761,2519.7,2519.5,0.31762]
[1730515153376,5.22927738,2519.8,2519.5,0.31762]
[1730515153885,0.31762,2519.6,2519.5,0.31762]
[1730515154187,0.31762,2519.6,2519.4,0.31763]
[1730515154382,0.31762,2519.6,2519.3,1.96837738]
[1730515154383,0.31762,2519.6,2519.5,0.31763]
[1730515154585,5.22927738,2519.8,2519.5,0.31763]
[1730515154787,0.31761,2519.7,2519.5,0.31763]
[1730515155584,0.31762,2519.6,2519.5,0.31763]
[1730515155780,5.22927738,2519.8,2519.3,1.96837738]
[1730515155982,0.31763,2519.5,2519.4,0.31764]
[1730515156187,1.14337738,2519.6,2519.3,1.14337738]
[1730515156389,0.31764,2519.4,2519.3,0.825]
[1730515156784,0.31764,2519.4,2519.3,1.14265]
[1730515157484,0.31764,2519.4,2519.3,0.825]
[1730515157683,3.2078,2519.6,2519.3,1.96837738]
[1730515157990,0.31762,2519.6,2519.4,0.31763]
[1730515158393,2.02147738,2519.8,2519.4,0.31763]
[1730515158586,0.31763,2519.5,2519.4,0.31763]
[1730515161094,0.31763,2519.6,2519.4,0.31763]
[1730515162695,3.52541,2519.7,2519.6,0.31762]
[1730515165693,3.2078,2519.7,2519.6,1.46099738]
[1730515165996,3.2078,2519.7,2519.6,5.85359738]
[1730515166186,0.74217,2520.0,2519.8,0.31758]
[1730515166386,0.74217,2520.0,2519.8,1.14258]
[1730515166594,1.14337738,2519.9,2519.8,1.14258]
[1730515169189,1.14337738,2519.9,2519.8,1.26670263]
[1730515169389,1.14337738,2519.9,2519.8,1.84295601]
[1730515172598,1.14337738,2519.9,2519.8,1.84291096]
[1730515174994,0.4246,2520.0,2519.9,0.31758]
[1730515175390,0.74217,2520.0,2519.9,0.74288]
[1730515175700,0.4246,2520.0,2519.9,0.74288]
[1730515175898,0.4246,2520.0,2519.9,1.16418]
[1730515178591,0.74217,2520.0,2519.9,1.16418]
[1730515179701,0.4246,2520.0,2519.9,1.16418]
[1730515182602,1.14337738,2520.1,2520.0,0.31757]
[1730515182794,5.57824858,2520.2,2520.0,0.31757]
[1730515183105,5.57824858,2520.2,2519.9,0.8466]
[1730515183404,0.31756,2520.1,2520.0,0.31756]
[1730515196918,3.4408312,2520.1,2520.0,0.31756]
[1730515197416,0.31756,2520.1,2520.0,0.31756]
[1730515199422,3.4408312,2520.1,2520.0,0.31756]
[1730515199625,0.31756,2520.1,2520.0,0.31756]
[1730515201815,3.4408312,2520.1,2520.0,0.31756]
[1730515202823,0.3176,2519.7,2519.6,0.74141]
[1730515203022,3.5254,2519.8,2519.7,0.3176]
[1730515203527,4.4231,2519.8,2519.7,0.3176]
[1730515203722,4.1055,2519.8,2519.7,0.3176]
[1730515204030,4.42309,2519.8,2519.7,0.3176]
[1730515204229,3.5474712,2519.9,2519.7,1.14337738]
[1730515204424,3.4408412,2520.0,2519.9,0.31758]
[1730515204825,7.9697312,2520.1,2519.8,1.3457]
[1730515205019,7.6521712,2520.1,2520.0,0.31757]
[1730515205222,3.2078,2520.1,2520.0,0.31757]
[1730515207227,3.1232712,2520.2,2520.1,0.31755]
[1730515208630,3.1232712,2520.2,2520.1,0.77365]
[1730515210433,8.73592378,2520.3,2520.2,0.31754]
[1730515211830,7.2750164,2520.3,2520.2,0.31754]
[1730515213127,4.0672164,2520.3,2520.2,1.02160066]
[1730515213335,0.4234,2520.3,2520.2,1.48300066]
[1730515213531,3.86648103,2520.3,2520.2,1.48300066]
[1730515213730,0.74093,2520.3,2520.2,1.48300066]
[1730515214734,3.86648103,2520.3,2520.2,1.48300066]
[1730515215337,3.86648103,2520.3,2520.2,1.48274519]
[1730515215536,3.86648103,2520.3,2520.2,0.77894]
[1730515216332,0.74093,2520.3,2520.2,0.77894]
[1730515216532,3.86648103,2520.3,2520.2,0.77894]
[1730515216728,0.74093,2520.3,2520.2,0.77894]
[1730515218338,0.74093,2520.3,2520.2,1.92231738]
[1730515218339,0.4234,2520.3,2520.2,1.92231738]
[1730515218540,1.19632,2520.4,2520.3,0.31753]
[1730515218742,0.8788,2520.4,2520.3,0.31753]
[1730515218936,1.19632,2520.4,2520.3,0.31753]
[1730515221339,0.8788,2520.4,2520.1,0.4561]
[1730515221531,0.31756,2520.1,2520.0,0.31756]
[1730515222443,0.31756,2520.1,2520.0,0.900339]
[1730515222643,0.31756,2520.1,2520.0,1.0244541]
[1730515223139,0.31755,2520.1,2520.0,1.0244541]
[1730515223643,0.31755,2520.2,2520.1,0.31755]
[1730515224544,0.31755,2520.2,2520.1,0.90029891]
[1730515224746,0.31755,2520.2,2520.1,0.31755]
[1730515225046,0.31755,2520.2,2520.1,1.0243982]
[1730515225343,0.31755,2520.2,2520.1,0.90028721]
[1730515225542,0.31755,2520.2,2520.1,1.02439805]
[1730515225745,0.31755,2520.2,2520.1,0.90028721]
[1730515226443,0.31755,2520.2,2520.1,0.90028547]